Cogmind - Beta 13 X1 @@@ ROGUE MODE // 2023.09.17 @ 08:14:44 Player: VR-DUX Result: Destroyed by YY-EDE(R) with Subdweller Laser Performance ------------- Evolutions (0) 0 Regions Visited (2) 400 Robots Destroyed (30) 150 Value Destroyed (643) 643 Prototype IDs (0) 0 Alien Tech Used (0) 0 Bonus (0) 0 TOTAL SCORE: 1193 Bonus ------- None Cogmind --------- Core Integrity 0/250 Matter 260/300 Energy 100/100 System Corruption 0% Temperature Cool (6) Movement Treading (160) Location -10/Subcaves Parts ------- > --- POWER (1) -------- (None) > --- PROPULSION (2) --- Light Treads Light Treads > --- UTILITY (2) ------ Large Storage Unit Structural Scanner > --- WEAPON (2) ------- Assault Rifle Subdweller Machine Gun > --- INVENTORY (15) --- Light Treads Compact Wheel Subdweller Monowheel Medium Storage Unit High-capacity Matter Pod (100) Signal Interpreter Signal Interpreter Scrap Shield Hacking Suite Grenade Launcher Mining Laser Peak State ------------ > --- POWER ------------ Light Ion Engine > --- PROPULSION ------- Wheel Compact Wheel > --- UTILITY ---------- Large Storage Unit Transport Network Coupler > --- WEAPON ----------- EM Pulse Gun Light Assault Rifle > --- INVENTORY -------- Light Ion Engine Light Treads Light Treads Light Treads Light Treads Wheel Small Storage Unit Signal Interpreter Hacking Suite Assault Rifle [Rating: 8] Favorites ----------- Power Light Ion Engine Engine Light Ion Engine Propulsion Light Treads Treads Light Treads Leg Aluminum Leg Wheel Wheel Utility Large Storage Unit Device Structural Scanner Storage Large Storage Unit Processor Transport Network Coupler Weapon Assault Rifle Energy Gun EM Pulse Gun Energy Cannon Beam Cannon Ballistic Gun Assault Rifle Ballistic Cannon Light Cannon Launcher Grenade Launcher Special Weapon Mining Laser Build | -11 -10 -10 ------- Run | Jun Mat Sub Slots Evolved . | . . . Power . | . . . Propulsion . | . . . Utility . | . . . Weapon . | . . . Parts Attached 27 | . 17 10 Power 2 | . 1 1 Engine 2 | . 1 1 Core . | . . . Reactor . | . . . Propulsion 8 | . 6 2 Treads 5 | . 3 2 Leg . | . . . Wheel 3 | . 3 . Hover . | . . . Flight . | . . . Utility 3 | . 2 1 Device 1 | . . 1 Storage 1 | . 1 . Processor 1 | . 1 . Hackware . | . . . Protection . | . . . Artifact . | . . . Weapon 14 | . 8 6 Energy Gun 2 | . 1 1 Energy Cannon 1 | . 1 . Ballistic Gun 8 | . 5 3 Ballistic Cannon 1 | . . 1 Launcher 1 | . 1 . Special Weapon 1 | . . 1 Impact Weapon . | . . . Slashing Weapon . | . . . Piercing Weapon . | . . . Special Melee Weapon . | . . . Unidentified Prototypes . | . . . Parts Lost 7 | . 1 6 Power 2 | . . 2 Propulsion 2 | . . 2 Utility . | . . . Weapon 3 | . 1 2 Highest Loss Streak 3 | . 1 3 To Critical Strikes . | . . . Average Slot Usage (%) 96 | . 97 94 Engine 13 | . 14 13 Treads 19 | . 15 27 Wheel 7 | . 11 . Device 4 | . . 13 Storage 14 | . 14 14 Processor 7 | . 11 . Energy Gun 5 | . 4 6 Ballistic Gun 17 | . 21 10 Ballistic Cannon 2 | . . 6 Naked Turns . | . . . Heaviest Build 31 | 11 30 31 Greatest Support 40 | 20 40 40 Greatest Overweight (x) 1 | . 1 . Average Overweight (x) . | . . . Largest Inventory Capacity 15 | 8 15 15 Average Capacity 14 | 8 14 15 Most Carried 15 | 6 15 15 Average Carried 12 | 6 13 12 Final Capacity 15 | 8 15 15 Final Carried 15 | 6 15 12 Class Distribution -------------------- 100% | Mutant Dominant Class ---------------- Mutant | -10/Materials Mutant | -10/Subcaves Resources | -11 -10 -10 ----------- Run | Jun Mat Sub Matter Collected 959 | 203 573 183 Remotely . | . . . Salvage Created 1044 | 74 788 182 Parts 65 | 1 52 12 Haulers Intercepted 2 | . 2 . Recyclers Shooed 3 | . 3 . Parts Field Recycled . | . . . Retrieved Matter . | . . . Parts Self-Destructed . | . . . Prevented . | . . . Kills | -11 -10 -10 ------- Run | Jun Mat Sub Combat Hostiles Destroyed 18 | . 12 6 Guns 11 | . 8 3 Cannons 3 | . . 3 AOE 4 | . 4 . Classes Destroyed 9 | 1 7 1 Worker 1 | . 1 . Builder 3 | . 3 . Hauler 2 | . 2 . Recycler 4 | 1 3 . Operator 1 | . 1 . Watcher 1 | . 1 . Swarmer 6 | . 6 . Grunt 6 | . 6 . Subdweller 6 | . . 6 Best Kill Streak 6 | 1 6 2 Combat Bots Only 5 | . 5 2 Max Kills in Single Turn 2 | 1 2 1 Gunslinging . | . . . Exploded 2 | . 2 . Melee . | . . . Uniques/NPCs Destroyed . | . . . Combat | -11 -10 -10 -------- Run | Jun Mat Sub Damage Taken 1414 | . 457 957 Core 270 | . 56 214 Absorbed by Shields . | . . . Core Remaining (%) 100 | 100 . . Volleys Fired 110 | 3 69 38 Largest 2 | 2 2 2 Hottest 100 | 60 80 100 Shots Fired 202 | 6 136 60 Gun 174 | 6 133 35 Cannon 15 | . 1 14 Launcher 2 | . 2 . Special 11 | . . 11 Kinetic 147 | 3 103 41 Thermal 12 | . 1 11 Explosive 2 | . 2 . Electromagnetic 41 | 3 30 8 Robot Hit Streak 40 | 6 8 40 Robot Miss Streak 7 | . 7 4 Penetration Max . | . . . Secondary Targets . | . . . Shots Hit Robots 130 | 6 78 46 Core Hits 53 | 2 38 13 Critical Kills . | . . . Critical Parts Destroyed 2 | 1 1 . Critical Strikes 4 | 1 2 1 Destroy 3 | 1 1 1 Corrupt 1 | . 1 . Melee Attacks . | . . . Impact . | . . . Slashing . | . . . Piercing . | . . . Sneak Attacks . | . . . Combat Hostiles . | . . . Follow-up Attacks . | . . . Damage Inflicted 1992 | 65 1247 680 Guns 1453 | 65 907 481 Cannons 216 | . 17 199 Explosions 323 | . 323 . Melee . | . . . Ramming . | . . . Kinetic 1285 | 25 670 590 Thermal 86 | . 86 . Explosive 254 | . 254 . Electromagnetic 367 | 40 237 90 Impact . | . . . Slashing . | . . . Piercing . | . . . Highest Corruption . | . . . Average Corruption . | . . . Corruption Purged . | . . . Corruption Blocked . | . . . Overload Shots . | . . . Overflow Damage 26 | . 26 . Projectiles . | . . . Explosions 26 | . 26 . Melee . | . . . Knockbacks 5 | . . 5 Impact . | . . . Kinetic 5 | . . 5 Secondary . | . . . Self-Inflicted Damage 31 | . 31 . Shots 1 | . 1 . Rammed . | . . . Targets Rammed . | . . . Kicked . | . . . Crushed . | . . . Highest Temperature 52 | 40 52 . Average Temperature 20 | 19 20 . Received Heat Transfer 345 | . 153 192 Siege Activations . | . . . Robots Corrupted . | . . . Combat Hostiles . | . . . Parts Fried 1 | . . 1 Impact Corruptions . | . . . Robots Melted . | . . . Combat Hostiles . | . . . Parts Melted . | . . . Heat Transferred 137 | . 137 . Parts Sabotaged . | . . . Parts Stolen . | . . . Parts Stripped . | . . . Power Chain Reactions 1 | . 1 . Missiles Intercepted . | . . . Alert | -11 -10 -10 ------- Run | Jun Mat Sub Peak Influence 417 | 5 417 . Initial 3 | . 3 . Average 216 | 3 220 . Maximum Alert Level 2 | . 2 . Low Security (%) 32 | 100 31 . Level 1 66 | . 67 . Level 2 . | . . . Level 3 . | . . . Level 4 . | . . . Level 5 . | . . . High Security . | . . . Max Security . | . . . Squads Dispatched 3 | . 3 . Investigation . | . . . Extermination . | . . . Reinforcement 3 | . 3 . Assault . | . . . Garrison . | . . . Intercept . | . . . Searches Triggered . | . . . Construction Impeded . | . . . Haulers Reinforced . | . . . Active Scanning Responses . | . . . Cargo Convoy Interrupts . | . . . Stealth | -11 -10 -10 --------- Run | Jun Mat Sub Distress Signals . | . . . Communications Jammed . | . . . Distress Signals . | . . . Times Spotted 41 | . 34 7 Peak Tracking Total 4 | . 4 2 Tactical Retreats 1 | . 1 . Traps | -11 -10 -10 ------- Run | Jun Mat Sub Traps Triggered . | . . . Indirectly . | . . . Trap Hack Attempts . | . . . Triggered . | . . . Disarmed . | . . . Reprogrammed . | . . . Reused . | . . . Traps Extracted . | . . . Installed . | . . . Triggered . | . . . Machines | -11 -10 -10 ---------- Run | Jun Mat Sub Machines Disabled 5 | . 5 . Max in Single Turn 1 | . 1 . Machines Repaired . | . . . Machines Sabotaged . | . . . Overloaded Fab Kills . | . . . Hacking | -11 -10 -10 --------- Run | Jun Mat Sub Machines Accessed 6 | . 6 . Terminals 6 | . 6 . Fabricators . | . . . Repair Stations . | . . . Recycling Units . | . . . Scanalyzers . | . . . Garrison Access . | . . . Total Hacks 18 | . 18 . Successful 8 | . 8 . Failed 10 | . 10 . Catastrophic 3 | . 3 . Database Lockouts . | . . . Manual 21 | . 21 . Terminals 18 | . 18 . Fabricators . | . . . Repair Stations . | . . . Recycling Units . | . . . Scanalyzers . | . . . Garrison Access . | . . . Terminal Hacks 8 | . 8 . Robot Analysis 7 | . 7 . Zone Layout 1 | . 1 . Fabricator Hacks . | . . . Repair Station Hacks . | . . . Recycling Unit Hacks . | . . . Scanalyzer . | . . . Garrison Access Hacks . | . . . Unauthorized Hacks . | . . . Terminals . | . . . Fabricators . | . . . Repair Stations . | . . . Recycling Units . | . . . Scanalyzers . | . . . Garrison Access . | . . . Data Cores Recovered 1 | . 1 . Used . | . . . Hacking Detections 5 | . 5 . Full Trace Events . | . . . Feedback Events . | . . . Feedback Blocked . | . . . Robot Schematics Acquired . | . . . Robots Built . | . . . Authchips . | . . . Time . | . . . Total Robot Build Rating . | . . . Part Schematics Acquired . | . . . Parts Built . | . . . Authchips . | . . . Time . | . . . Total Part Build Rating . | . . . Parts Repaired . | . . . Time . | . . . Parts Recycled . | . . . Recycled Matter . | . . . Retrieved Matter . | . . . Retrieved Components . | . . . Parts Scanalyzed . | . . . Part Schematics Acquired . | . . . Parts Damaged . | . . . Bothacking | -11 -10 -10 ------------ Run | Jun Mat Sub Used RIF Installer . | . . . Robots Hacked . | . . . Non-combat . | . . . Combat . | . . . Robot Hacks Applied . | . . . Relay Couplers Released . | . . . Fabnet Peak Effective % . | . . . Robots Rewired . | . . . Allies Hacked . | . . . Hacks Repelled . | . . . Allies | -11 -10 -10 -------- Run | Jun Mat Sub Total Allies . | . . . Largest Group . | . . . Highest-Rated Group . | . . . Highest-Rated Ally . | . . . Total Orders . | . . . Ally Attacks . | . . . Total Damage . | . . . Kills . | . . . Allies Corrupted . | . . . Allies Melted . | . . . Intel | -11 -10 -10 ------- Run | Jun Mat Sub Robot Analysis Total 7 | . 7 . Derelict Logs Recovered 1 | . . 1 Drone Launches . | . . . Drone Recoveries . | . . . Exploration | -11 -10 -10 ------------- Run | Jun Mat Sub Turns Passed 1676 | 22 1073 581 Spaces Moved 913 | 12 622 279 Core . | . . . Treads 563 | . 284 279 Legs 50 | 12 38 . Wheels 300 | . 300 . Hover . | . . . Flight . | . . . Fastest Speed 90 | 120 90 160 Average Speed 136 | 120 126 160 Slowest Speed 240 | 120 240 160 Overloaded Moves . | . . . Propulsion Burnouts . | . . . Robots Hopped . | . . . Cave-ins Triggered . | . . . Exploration Rate (%) 38 | 3 92 21 Regions Visited 2 Branch Regions 1 Pre-discovered Areas . | . . . Known Exits Taken . | . . . Unknown Exits Taken 2 | 1 1 . Scrap Searched 2 | . . 2 Spaces Dug . | . . . Terrain Destroyed 21 | . 21 . Melee . | . . . Projectile . | . . . AOE 21 | . 21 . Terrain Rammed . | . . . Walls Destroyed . | . . . Machines Disabled . | . . . Actions | -11 -10 -10 --------- Run | Jun Mat Sub Total 1131 | 14 784 333 Wait 46 | . 45 1 Move 911 | 11 621 279 Hop . | . . . Pick Up 21 | . 18 3 Fast Attach 5 | . 5 . Attach 12 | . 5 7 Detach 1 | . 1 . Swap 10 | . 7 3 Drop 15 | . 13 2 Fire 110 | 3 69 38 Melee . | . . . Ram . | . . . Kick . | . . . Crush . | . . . Escape Stasis . | . . . Rewire . | . . . Trap . | . . . Miscellaneous . | . . . Route ------- -11/Junkyard -10/Materials (discovered 6 exits: [*Mat x3] / [*Min x2] / [*Sub]) -10/Subcaves History --------- Turn | Location | Event 1 | -11/Junkyard | Discovered new exit (range 3) 23 | -11/Junkyard | Entered Materials 269 | -10/Materials | Discovered new exit (range 11) 332 | -10/Materials | Build established: Mutant 570 | -10/Materials | Discovered new exit (range 7) 762 | -10/Materials | Discovered new exit (range 22) 794 | -10/Materials | Discovered new exit (range 5) 866 | -10/Materials | Discovered new exit (range 6) 1082 | -10/Materials | Discovered new exit (range 9) 1096 | -10/Materials | Entered Subcaves 1108 | -10/Subcaves | Learned Materials terminal intel 1185 | -10/Subcaves | Core integrity fell below 50% 1255 | -10/Subcaves | Ambushed by Subdweller buried in earth 1255 | -10/Subcaves | Ambushed by Subdweller buried in earth 1298 | -10/Subcaves | Lost 3 parts (1p2n) 1518 | -10/Subcaves | Disturbed a concealed Subdweller 1658 | -10/Subcaves | Core integrity fell below 20% 1677 | -10/Subcaves | Destroyed by YY-EDE(R) with Subdweller Laser Last Messages --------------- 01290_ Acquired 28 matter. 01290_ Acquired 5 matter. 01413_ Dropped Lgt. Cannon. 01507_ Searching scrap... 01507_ Found Sub. Shrapnel Launcher. 01507_ Found Sub. Machine Gun. 01507_ Found 18 Matter. 01508_ Acquired 18 matter. 01510_ Acquired Sub. Machine Gun. 01518_ 79-5S5(R) angrily emerges from the Twisted Machinery. 01521_ 79-5S5(R) affixes Scrap Shield Fragment to Scrap Shield. 01524_ Assault Rifle destroyed. 01527_ Sub. Optics fried. 01527_ 79-5S5(R) destroyed. 01529_ Acquired 44 matter. 01533_ Acquired Scrap Shield. 01661_ EM Pulse Gun destroyed. 01663_ Lgt. Ion Engine destroyed. 01673_ K5-RA0(R) destroyed. 01676_ YY-EDE(R) suffers critical hit (Destroy). Map ----- +----------------------------------------------------+ | # ## # ## #####??????????????????? | | ## " " ###??????????????????? | | ### #### ##??????????????????? | | ### ###### # # ###??????????????????? | | ## ######## ##### ###??????????????????? | | ######## ##### ###???????????????????? | | ####### ###### ##???????????????????? | | ## #### ##???????????????????? | | ## ## ###???????????????????? | | ########### ### ###???????????????????? | | ########### # ##???????????????????? | | ???###???## ###???????????????????? | | ??### #### ###???????????????????? | | ??## #### # ##????????????????????? | | ??## ### #### ########????????????????????? | | ?? ########## #######????????????????????? | | ?? ??### #### ##????????????????????????? | | ?????## ##????????????????????????? | | ????### ###????????????????????????? | | #??### ## ####????????????????????????? | | #?##### ## #######?????????????????????? | | #?### # ## ########????????????????????? | | #?## ### ###????????????????????? | | #### # #### ##????????????????????? | | #### ### ##### ##????????????????????? | | #######?### # =@###????????????????????? | | #######?######R%####????????????????????? | | ### ######??#####"&###?????????????????????? | | ###### " ##???####" #######?????????????????? | | ####### " "##??####""]"##########?????????????? | | #???#### ####### " ## ### # ???????????? | | ?????####" "###### """ """ ???????????? | | ??????### # ### ###""""""" ??????????? | | ???????#### ###" "#"##### ????????? | | ???????#### #### #################????????? | | ?????????### ###############????#######????????? | | ?????????#################???????????????????????? | | ??????????#######????????????????????????????????? | | ?????????????????????????????????????????????????? | | ?????????????????????????????????????????????????? | | ?????????????????????????????????????????????????? | | ?????????????????????????????????????????????????? | | ?????????????????????????????????????????????????? | | ?????????????????????????????????????????????????? | | ?????????????????????????????????????????????????? | | ?????????????????????????????????????????????????? | | ?????????????????????????????????????????????????? | | ?????????????????????????????????????????????????? | | ?????????????????????????????????????????????????? | | ?????????????????????????????????????????????????? | +----------------------------------------------------+ Best States ------------- Heat Dissipation 25 Energy Generation 10 Energy Capacity 250 Matter Stores 300 Matter Capacity 300 Sight Range 16 Terrain Scan Density 10 Evasion (%) 55 Recoil Reduction 2 Item Schematics ----------------- None Robot Schematics ------------------ None Fabricated ------------ Nothing Alien Tech Used ----------------- None Achievements -------------- None Challenges ------------ None Game ------ Seed ReactionHellfireCleaver Manual? 0 Play Time 00:26:11 Cumulative 155.4 hours Start 2023.09.17 @ 07:49:19 End 2023.09.17 @ 08:14:44 Sessions 1 Manual Loads 0 Difficulty Rogue Special Mode None Game No. 101 Rogue 101 Adventurer 0 Explorer 0 Win Type - Total 3 Types 2/0/1/0/0/0/0/0/0 Lore% 49 Gallery% 50 Achievement% 48 Wizard Run 0 Options --------- ASCII 0 Keyboard 0 Movement Mouse Keybinds 0 Fullscreen 1 Font 18/SmallcapsGlow Map View 76x50 Tactical HUD 1 Map Filters NONE Filters NONE Steam X RUN: 51486ea5-23ba-4525-8032-b41034744641